Cogmind - Beta 16.1 @@@ ROGUE MODE // 2026.02.13 @ 15:08:32 Player: Megaknight51 Result: Destroyed by S-43 Plague with Heavy Machine Gun Performance ------------- Evolutions (7) 3500 Regions Visited (11) 2200 Robots Destroyed (58) 290 Value Destroyed (1723) 1723 Prototype IDs (3) 60 Alien Tech Used (0) 0 Bonus (0) 0 TOTAL SCORE: 7773 Bonus ------- None Cogmind --------- Core Integrity 0/1300 Matter 255/300 Energy 100/100 System Corruption 3% Temperature Cool (0) Movement Core (50) Location -3/Research Parts ------- > --- POWER (2) -------- (None) > --- PROPULSION (6) --- (None) > --- UTILITY (11) ----- (None) > --- WEAPON (2) ------- (None) > --- INVENTORY (5) ---- Light Fission Core Improved Signal Interpreter Advanced Remote Datajack Peak State ------------ > --- POWER ------------ Light Angular Momentum Engine Light Angular Momentum Engine > --- PROPULSION ------- Xenon Bombardment Thruster Xenon Bombardment Thruster Cooled Cesium-ion Thruster Field Propulsion Drive Impulse Thruster Q-thruster > --- UTILITY ---------- Structural Scanner Improved Trap Scanner Triangulator Advanced Visual Processing Unit Improved Sensor Array Experimental Signal Interpreter Advanced Terrain Scan Processor Improved Transmission Jammer Makeshift System Shield Advanced System Shield Drone Bay > --- WEAPON ----------- Lance > --- INVENTORY -------- Angular Momentum Engine Light Fission Core Improved Signal Interpreter Advanced Remote Datajack [Rating: 103] Favorites ----------- Power Light Angular Momentum Engine Engine Light Angular Momentum Engine Power Core Light Fission Core Propulsion Aluminum Leg Leg Aluminum Leg Flight Unit Xenon Bombardment Thruster Utility Large Storage Unit Device Structural Scanner Storage Large Storage Unit Processor Advanced Visual Processing Unit Hackware System Shield Protection Light Armor Plating Weapon Light Assault Rifle Energy Gun Medium Laser Ballistic Gun Light Assault Rifle Ballistic Cannon Advanced Assault Cannon Launcher Mini Grenade Launcher Special Weapon Mining Laser Impact Weapon Maul Piercing Weapon Lance Build | -11 -10 -9 -8 -7 -6 -5 -5 -5 -4 -4 -3 ------- Run | Yrd Mat Mat Mat Fac Fac Fac Upp Upp Fac Ext Res Slots Evolved 14 | . . 2 2 2 2 2 . . 2 . 2 Power 1 | . . . 1 . . . . . . . . Propulsion 4 | . . 2 . . . . . . 2 . . Utility 9 | . . . 1 2 2 2 . . . . 2 Weapon . | . . . . . . . . . . . . Parts Attached 75 | 7 4 9 20 8 8 2 1 . 3 . 13 Power 11 | 1 . 2 4 . 2 . . . 2 . . Engine 7 | 1 . 1 2 . 1 . . . 2 . . Core 4 | . . 1 2 . 1 . . . . . . Reactor . | . . . . . . . . . . . . Propulsion 26 | 2 3 3 4 4 4 . . . 1 . 5 Treads . | . . . . . . . . . . . . Leg 12 | 2 3 3 4 . . . . . . . . Wheel . | . . . . . . . . . . . . Hover . | . . . . . . . . . . . . Flight 14 | . . . . 4 4 . . . 1 . 5 Utility 21 | 1 1 . 4 3 2 1 1 . . . 8 Device 10 | . . . 2 2 . . 1 . . . 5 Storage 2 | 1 1 . . . . . . . . . . Processor 5 | . . . 1 1 1 1 . . . . 1 Hackware 3 | . . . . . 1 . . . . . 2 Protection 1 | . . . 1 . . . . . . . . Artifact . | . . . . . . . . . . . . Weapon 17 | 3 . 4 8 1 . 1 . . . . . Energy Gun 3 | 2 . 1 . . . . . . . . . Energy Cannon . | . . . . . . . . . . . . Ballistic Gun 7 | 1 . 3 3 . . . . . . . . Ballistic Cannon 2 | . . . 2 . . . . . . . . Launcher 2 | . . . 2 . . . . . . . . Special Weapon 1 | . . . 1 . . . . . . . . Impact Weapon 1 | . . . . 1 . . . . . . . Slashing Weapon . | . . . . . . . . . . . . Piercing Weapon 1 | . . . . . . 1 . . . . . Special Melee Weapon . | . . . . . . . . . . . . Unidentified Prototypes 3 | . . . . . 1 . . . . . 2 Parts Lost 43 | . 1 8 15 . . . 2 . . 4 13 Power 8 | . 1 1 3 . . . . . . . 3 Propulsion 19 | . . 4 6 . . . . . . 2 7 Utility 8 | . . . 1 . . . 2 . . 2 3 Weapon 8 | . . 3 5 . . . . . . . . Highest Loss Streak 13 | . 1 6 5 . . . 2 . . 4 13 To Critical Strikes . | . . . . . . . . . . . . Average Backups 7 | . 8 11 14 7 3 4 4 4 4 4 3 Power . | . . . . . . 2 2 2 2 2 1 Propulsion 1 | . 4 4 3 . . . . . . . . Utility 3 | . 2 4 5 2 2 2 2 2 2 2 1 Weapon 1 | . 1 2 4 3 . . . . . . . Tool/Special . | . . . . . . . . . . . . Unused Backups 14 | . . . 2 4 5 . 1 . . . 2 Power . | . . . . . . . . . . . . Propulsion . | . . . . . . . . . . . . Utility 8 | . . . 1 2 3 . 1 . . . 1 Weapon 5 | . . . 1 2 2 . . . . . . Tool/Special 1 | . . . . . . . . . . . 1 Average Slot Usage (%) 74 | . 84 70 52 73 87 87 87 79 76 77 66 Engine 6 | . 13 1 4 7 6 5 5 5 5 5 7 Core 2 | . . 6 2 . 3 5 5 5 5 5 . Leg 11 | . 28 31 13 . . . . . . . . Flight 11 | . . . . 23 26 23 23 23 24 25 20 Device 9 | . . . 4 19 20 17 16 14 15 15 14 Storage 5 | . 14 11 9 3 . . . . . . . Processor 8 | . . . . 9 18 22 23 17 15 15 13 Hackware 2 | . . . . . 4 5 5 5 5 5 4 Energy Gun 3 | . 14 4 1 . . . . . . . . Ballistic Gun 6 | . 14 16 7 2 . . . . . . . Ballistic Cannon 1 | . . . 5 1 . . . . . . . Impact Weapon 1 | . . . . 3 6 5 . . . . . Piercing Weapon 1 | . . . . . . . 5 5 5 5 3 Peak Build Rating 103 | 6 7 13 23 23 51 60 64 57 63 63 103 Average Rating 28 | 4 6 10 14 18 31 54 58 56 62 60 71 On Entrance 32 | . 6 6 10 16 21 51 58 53 57 63 43 Avg Prop Armor Cover (%) 12 | . . . . 10 15 . . . . . . Naked Turns 27 | . . . . . . . . . . . 27 Heaviest Build 39 | 13 33 31 39 32 22 22 22 24 24 24 34 Greatest Support 50 | 20 20 40 50 20 24 24 24 24 31 31 42 Greatest Overweight (x) 11 | 1 1 7 11 10 2 . . . . . 4 Average Overweight (x) . | . . . 2 . . . . . . . . Largest Inventory Capacity 15 | 8 15 15 15 15 5 5 5 5 5 5 5 Average Capacity 10 | 6 14 15 15 10 5 5 5 5 5 5 5 Most Carried 15 | 3 12 14 15 15 5 5 5 5 4 5 5 Average Carried 7 | . 8 11 14 7 3 4 4 4 4 4 3 Final Capacity 15 | 8 15 15 15 5 5 5 5 5 5 5 5 Final Carried 15 | 3 12 14 15 5 5 4 5 4 4 5 3 Class Distribution -------------------- 37% | Mutant 31% | Scout 18% | Scavenger-Mutant 4% | Assassin 4% | Sprinter Dominant Class ---------------- Mutant | -10/Materials Scavenger-Mutant | -9/Materials Mutant | -8/Materials Mutant | -7/Factory Scout | -6/Factory Scout | -5/Factory Scout | -5/Upper Caves Scout | -5/Upper Caves Scout | -4/Factory Scout | -4/Extension Sprinter | -3/Research Resources | -11 -10 -9 -8 -7 -6 -5 -5 -5 -4 -4 -3 ----------- Run | Yrd Mat Mat Mat Fac Fac Fac Upp Upp Fac Ext Res Matter Collected 1435 | 281 90 260 320 . 307 . 68 . . . 109 Remotely . | . . . . . . . . . . . . Salvage Created 1998 | 145 568 547 585 . 111 . 26 . . . 16 Parts 99 | 9 21 27 37 . . . 1 . . . 4 Haulers Intercepted . | . . . . . . . . . . . . Recyclers Shooed 6 | 1 2 . . 3 . . . . . . . Parts Field Recycled . | . . . . . . . . . . . . Retrieved Matter . | . . . . . . . . . . . . Parts Self-Destructed . | . . . . . . . . . . . . Prevented . | . . . . . . . . . . . . Parts Restored . | . . . . . . . . . . . . Kills | -11 -10 -9 -8 -7 -6 -5 -5 -5 -4 -4 -3 ------- Run | Yrd Mat Mat Mat Fac Fac Fac Upp Upp Fac Ext Res Combat Hostiles Destroyed 37 | . 12 9 16 . . . . . . . . Guns 26 | . 12 8 6 . . . . . . . . Cannons 3 | . . . 3 . . . . . . . . AOE 7 | . . . 7 . . . . . . . . Classes Destroyed 12 | 2 1 2 6 . . . 1 . . . . Worker 4 | . . . 4 . . . . . . . . Builder 2 | . . . 1 . . . . . . . 1 Tunneler 5 | 4 . . 1 . . . . . . . . Recycler 5 | 1 1 1 1 . 1 . . . . . . Minesweeper 1 | . . . . . . . 1 . . . . Mechanic 1 | . . . 1 . . . . . . . . Watcher 3 | . . 2 1 . . . . . . . . Swarmer 3 | . . . 3 . . . . . . . . Grunt 25 | . 12 4 9 . . . . . . . . Duelist 1 | . . . 1 . . . . . . . . Sentry 7 | . . 5 2 . . . . . . . . Hunter 1 | . . . 1 . . . . . . . . Best Kill Streak 7 | 3 3 3 7 . 1 . 1 . . . 1 Combat Bots Only 4 | . 3 3 4 . . . . . . . . Max Kills in Single Turn 3 | 1 1 1 3 . 1 . 1 . . . 1 Gunslinging . | . . . . . . . . . . . . Exploded 1 | . . . 1 . . . . . . . . Melee . | . . . . . . . . . . . . Uniques/NPCs Destroyed . | . . . . . . . . . . . . Combat | -11 -10 -9 -8 -7 -6 -5 -5 -5 -4 -4 -3 -------- Run | Yrd Mat Mat Mat Fac Fac Fac Upp Upp Fac Ext Res Hostile Shots Fired 570 | . 73 91 182 . . . 8 . . 14 202 Missed 214 | . 19 27 41 . . . 3 . . 7 117 Hits 356 | . 54 64 141 . . . 5 . . 7 85 Melee 1 | . . . 1 . . . . . . . . Projectile 355 | . 54 64 140 . . . 5 . . 7 85 Critical Strikes 14 | . 2 . 6 . . . 1 . . . 5 Damage Taken 5672 | . 647 862 1745 5 28 . 89 . . 199 2097 Core 2235 | . 200 238 405 . 25 . 17 . . 28 1322 Absorbed by Shields . | . . . . . . . . . . . . Core Remaining (%) 72 | 100 20 40 26 100 97 . . 98 . 97 . Volleys Fired 170 | 11 53 48 58 . . . . . . . . Largest 2 | 2 2 2 2 . . . . . . . . Hottest 80 | 70 70 63 80 . . . . . . . . Shots Fired 310 | 22 106 75 107 . . . . . . . . Gun 284 | 22 106 75 81 . . . . . . . . Cannon 13 | . . . 13 . . . . . . . . Launcher 13 | . . . 13 . . . . . . . . Special . | . . . . . . . . . . . . Kinetic 196 | 11 53 59 73 . . . . . . . . Thermal 101 | 11 53 16 21 . . . . . . . . Explosive 13 | . . . 13 . . . . . . . . Electromagnetic . | . . . . . . . . . . . . Robot Hit Streak 16 | 5 11 16 8 . . . . . . . . Robot Miss Streak 6 | 2 2 2 6 . . . . . . . . Penetration Max . | . . . . . . . . . . . . Secondary Targets . | . . . . . . . . . . . . Shots Hit Robots 227 | 14 74 59 70 1 1 . 3 . 2 . 3 Core Hits 117 | 7 34 22 50 . 2 . 1 . . . 1 Critical Kills . | . . . . . . . . . . . . Critical Parts Destroyed 1 | . 1 . . . . . . . . . . Critical Strikes 3 | 1 2 . . . . . . . . . . Burn 2 | 1 1 . . . . . . . . . . Destroy 1 | . 1 . . . . . . . . . . Melee Attacks 40 | . . . . 1 4 . 13 . 16 1 5 Impact 5 | . . . . 1 4 . . . . . . Slashing . | . . . . . . . . . . . . Piercing 35 | . . . . . . . 13 . 16 1 5 Sneak Attacks 5 | . . . . 1 1 . 1 . 1 . 1 Combat Hostiles . | . . . . . . . . . . . . Follow-up Attacks . | . . . . . . . . . . . . Damage Inflicted 4659 | 139 769 924 2209 87 69 . 197 . 100 . 165 Guns 2745 | 139 760 899 947 . . . . . . . . Cannons 183 | . . . 183 . . . . . . . . Explosions 1068 | . . . 1068 . . . . . . . . Melee 594 | . . . . 74 60 . 197 . 100 . 163 Ramming 69 | . 9 25 11 13 9 . . . . . 2 Kinetic 2051 | 50 284 743 974 . . . . . . . . Thermal 1100 | 89 476 156 379 . . . . . . . . Explosive 845 | . . . 845 . . . . . . . . Electromagnetic . | . . . . . . . . . . . . Impact 134 | . . . . 74 60 . . . . . . Slashing . | . . . . . . . . . . . . Piercing 460 | . . . . . . . 197 . 100 . 163 Highest Corruption 3 | . . . . . 1 . . . . . 3 Average Corruption 1 | . . . . . 1 . . . . . 2 Corruption Purged . | . . . . . . . . . . . . Corruption Blocked . | . . . . . . . . . . . . Effects 3 | . . . . . 3 . . . . . . Message Errors 1 | . . . . . 1 . . . . . . Heat Flow Errors 1 | . . . . . 1 . . . . . . Data Loss (major) 1 | . . . . . 1 . . . . . . Overload Shots . | . . . . . . . . . . . . Overflow Damage 212 | . . . 22 . 30 . 95 . 40 . 25 Projectiles 19 | . . . 19 . . . . . . . . Explosions 3 | . . . 3 . . . . . . . . Melee 190 | . . . . . 30 . 95 . 40 . 25 Knockbacks 2 | . . . 1 1 . . . . . . . Impact 1 | . . . . 1 . . . . . . . Kinetic 1 | . . . 1 . . . . . . . . Secondary . | . . . . . . . . . . . . Self-Inflicted Damage 119 | . . . 110 5 3 . . . . . 1 Shots 4 | . . . 4 . . . . . . . . Rammed 20 | . . 1 2 8 8 . . . . . 1 Targets Rammed 30 | . 2 6 5 8 8 . . . . . 1 Kicked 10 | . 2 5 3 . . . . . . . . Crushed . | . . . . . . . . . . . . Highest Temperature 207 | 110 207 109 85 . . . 20 . . 7 146 Average Temperature 58 | 46 75 28 28 . . . 13 . . 7 75 Received Heat Transfer 1389 | . 387 351 486 . . . 27 . . 18 120 Siege Activations . | . . . . . . . . . . . . Martial Activations . | . . . . . . . . . . . . Shielding Activations . | . . . . . . . . . . . . Robots Disrupted . | . . . . . . . . . . . . Combat Hostiles . | . . . . . . . . . . . . Robots Corrupted 1 | . . . . . 1 . . . . . . Combat Hostiles . | . . . . . . . . . . . . Parts Fried 2 | . . . . . 2 . . . . . . Impact Corruptions 1 | . . . . . 1 . . . . . . Robots Melted 1 | . . 1 . . . . . . . . . Combat Hostiles 1 | . . 1 . . . . . . . . . Parts Melted 3 | . 2 1 . . . . . . . . . Heat Transferred 2734 | 333 1480 421 500 . . . . . . . . Parts Sabotaged . | . . . . . . . . . . . . Parts Stolen . | . . . . . . . . . . . . Parts Stripped . | . . . . . . . . . . . . Power Chain Reactions . | . . . . . . . . . . . . Alert | -11 -10 -9 -8 -7 -6 -5 -5 -5 -4 -4 -3 ------- Run | Yrd Mat Mat Mat Fac Fac Fac Upp Upp Fac Ext Res Maximum Alert Level 1 | . . . 1 . . . . . . . 1 Low Security (%) 94 | 100 100 100 76 100 100 100 . . 100 100 99 Level 1 5 | . . . 23 . . . . . . . . Level 2 . | . . . . . . . . . . . . Level 3 . | . . . . . . . . . . . . Level 4 . | . . . . . . . . . . . . Level 5 . | . . . . . . . . . . . . High Security . | . . . . . . . . . . . . Max Security . | . . . . . . . . . . . . Peak Influence 270 | 15 105 89 270 49 16 . . . 21 19 209 Initial 49 | . . 18 30 49 . . . . . 4 . Average 44 | 2 35 15 142 7 . . . . 4 10 36 Influence Increases 1755 | 25 330 286 591 . 28 . 5 . 35 15 440 Destroy 0b10 Robot/C 740 | . 240 180 320 . . . . . . . . Destroy 0b10 Robot/NC 105 | 25 5 15 45 . 5 . 5 . . . 5 Destroy Leader 186 | . 70 64 52 . . . . . . . . Successful Hack 18 | . . 12 . . 6 . . . . . . Disable Machine 120 | . . . 75 . 15 . . . 15 15 . Destroy Structure 106 | . . . 84 . 2 . . . 20 . . Partial Spotted 30 | . 15 . . . . . . . . . 15 Lose Combat Pursuer 450 | . . 15 15 . . . . . . . 420 Influence Decreases 1546 | 25 286 257 556 108 28 . 5 . 24 26 231 Entered New Map 135 | . . 26 43 59 . . . . . 7 . Time Decay 1092 | 25 286 186 378 49 28 . 5 . 24 10 101 Lost Part 319 | . . 45 135 . . . . . . 9 130 Squads Dispatched 15 | . 4 2 1 1 1 . . . 1 . 5 Investigation 2 | . 1 1 . . . . . . . . . Extermination 4 | . . . . 1 1 . . . . . 2 Reinforcement 9 | . 3 1 1 . . . . . 1 . 3 Assault . | . . . . . . . . . . . . Garrison . | . . . . . . . . . . . . Intercept . | . . . . . . . . . . . . Searches Triggered . | . . . . . . . . . . . . Construction Impeded 1 | . . . . . . . . . 1 . . Haulers Reinforced . | . . . . . . . . . . . . Active Scanning Responses . | . . . . . . . . . . . . Cargo Convoy Interrupts . | . . . . . . . . . . . . Stealth | -11 -10 -9 -8 -7 -6 -5 -5 -5 -4 -4 -3 --------- Run | Yrd Mat Mat Mat Fac Fac Fac Upp Upp Fac Ext Res Distress Signals 9 | . . 2 5 . . . . . . . 2 Communications Jammed 8 | . . . . . . . . . . . 8 Distress Signals 8 | . . . . . . . . . . . 8 Times Spotted 127 | . 18 17 30 . . . 3 . 1 5 53 Peak Tracking Total 24 | . 3 3 6 . . . 3 . 1 5 24 Tactical Retreats 9 | . . 1 1 . . . . . . . 7 Traps | -11 -10 -9 -8 -7 -6 -5 -5 -5 -4 -4 -3 ------- Run | Yrd Mat Mat Mat Fac Fac Fac Upp Upp Fac Ext Res Traps Triggered 5 | . 1 1 . . 1 . . . . . 2 Indirectly . | . . . . . . . . . . . . Trap Hack Attempts . | . . . . . . . . . . . . Triggered . | . . . . . . . . . . . . Disarmed . | . . . . . . . . . . . . Reprogrammed . | . . . . . . . . . . . . Reused . | . . . . . . . . . . . . Traps Extracted . | . . . . . . . . . . . . Installed . | . . . . . . . . . . . . Triggered . | . . . . . . . . . . . . Machines | -11 -10 -9 -8 -7 -6 -5 -5 -5 -4 -4 -3 ---------- Run | Yrd Mat Mat Mat Fac Fac Fac Upp Upp Fac Ext Res Machines Disabled 9 | . . . 5 . 1 . 1 . 1 1 . Max in Single Turn 3 | . . . 3 . 1 . 1 . 1 1 . Garrison Access 1 | . . . . . . . . . 1 . . Machines Repaired . | . . . . . . . . . . . . Machines Dismantled . | . . . . . . . . . . . . Machines Sabotaged . | . . . . . . . . . . . . Overloaded Fab Kills . | . . . . . . . . . . . . Hacking | -11 -10 -9 -8 -7 -6 -5 -5 -5 -4 -4 -3 --------- Run | Yrd Mat Mat Mat Fac Fac Fac Upp Upp Fac Ext Res Machines Accessed 9 | . . 1 . . 2 1 . . 2 1 2 Terminals 4 | . . . . . 2 . . . 1 1 . Fabricators 1 | . . . . . . 1 . . . . . Repair Stations . | . . . . . . . . . . . . Recycling Units . | . . . . . . . . . . . . Scanalyzers 2 | . . 1 . . . . . . . . 1 Garrison Access 2 | . . . . . . . . . 1 . 1 Total Hacks 15 | . . 2 . . 3 1 . . 5 1 3 Successful 4 | . . 1 . . 1 . . . 1 1 . Failed 11 | . . 1 . . 2 1 . . 4 . 3 Catastrophic 3 | . . 1 . . 1 . . . . . 1 Database Lockouts . | . . . . . . . . . . . . Manual 7 | . . . . . 3 . 1 . 3 . . Terminals 7 | . . . . . 3 . . . 3 1 . Fabricators 1 | . . . . . . 1 . . . . . Repair Stations . | . . . . . . . . . . . . Recycling Units . | . . . . . . . . . . . . Scanalyzers 4 | . . 2 . . . . . . . . 2 Garrison Access 3 | . . . . . . . . . 2 . 1 Terminal Hacks 2 | . . . . . 1 . . . . 1 . Open Door 1 | . . . . . . . . . . 1 . Terminal Index 1 | . . . . . 1 . . . . . . Fabricator Hacks . | . . . . . . . . . . . . Repair Station Hacks . | . . . . . . . . . . . . Recycling Unit Hacks . | . . . . . . . . . . . . Scanalyzer 1 | . . 1 . . . . . . . . . Retrieve Study 1 | . . 1 . . . . . . . . . Garrison Access Hacks 1 | . . . . . . . . . 1 . . Seal Access 1 | . . . . . . . . . 1 . . Unauthorized Hacks . | . . . . . . . . . . . . Terminals . | . . . . . . . . . . . . Fabricators . | . . . . . . . . . . . . Repair Stations . | . . . . . . . . . . . . Recycling Units . | . . . . . . . . . . . . Scanalyzers . | . . . . . . . . . . . . Garrison Access . | . . . . . . . . . . . . Data Cores Recovered . | . . . . . . . . . . . . Used . | . . . . . . . . . . . . Hacking Detections 8 | . . 1 . . 2 1 . . 2 . 2 Full Trace Events 1 | . . 1 . . . . . . . . . Feedback Events . | . . . . . . . . . . . . Feedback Blocked . | . . . . . . . . . . . . Robot Schematics Acquired . | . . . . . . . . . . . . Robots Built . | . . . . . . . . . . . . Authchips . | . . . . . . . . . . . . Time . | . . . . . . . . . . . . Total Robot Build Rating . | . . . . . . . . . . . . Part Schematics Acquired . | . . . . . . . . . . . . Parts Built . | . . . . . . . . . . . . Authchips . | . . . . . . . . . . . . Time . | . . . . . . . . . . . . Total Part Build Rating . | . . . . . . . . . . . . Part Studies Acquired 1 | . . 1 . . . . . . . . . Parts Repaired . | . . . . . . . . . . . . Time . | . . . . . . . . . . . . Parts Recycled . | . . . . . . . . . . . . Recycled Matter . | . . . . . . . . . . . . Retrieved Matter . | . . . . . . . . . . . . Retrieved Components . | . . . . . . . . . . . . Parts Scanalyzed . | . . . . . . . . . . . . Part Schematics Acquired . | . . . . . . . . . . . . Parts Damaged . | . . . . . . . . . . . . Bothacking | -11 -10 -9 -8 -7 -6 -5 -5 -5 -4 -4 -3 ------------ Run | Yrd Mat Mat Mat Fac Fac Fac Upp Upp Fac Ext Res Used RIF Installer . | . . . . . . . . . . . . Robots Hacked . | . . . . . . . . . . . . Non-combat . | . . . . . . . . . . . . Combat . | . . . . . . . . . . . . Robot Hacks Applied . | . . . . . . . . . . . . Relay Couplers Released . | . . . . . . . . . . . . Fabnet Peak Effective % . | . . . . . . . . . . . . Robots Rewired . | . . . . . . . . . . . . Allies Hacked . | . . . . . . . . . . . . Hacks Repelled . | . . . . . . . . . . . . Allies | -11 -10 -9 -8 -7 -6 -5 -5 -5 -4 -4 -3 -------- Run | Yrd Mat Mat Mat Fac Fac Fac Upp Upp Fac Ext Res Total Allies . | . . . . . . . . . . . . Largest Group . | . . . . . . . . . . . . Highest-Rated Group . | . . . . . . . . . . . . Highest-Rated Ally . | . . . . . . . . . . . . Total Orders 2 | . . . . . . . . . . . 2 EXPLORE 1 | . . . . . . . . . . . 1 RETURN 1 | . . . . . . . . . . . 1 Ally Attacks . | . . . . . . . . . . . . Total Damage . | . . . . . . . . . . . . Kills . | . . . . . . . . . . . . Allies Corrupted . | . . . . . . . . . . . . Allies Melted . | . . . . . . . . . . . . Intel | -11 -10 -9 -8 -7 -6 -5 -5 -5 -4 -4 -3 ------- Run | Yrd Mat Mat Mat Fac Fac Fac Upp Upp Fac Ext Res Active Infowar (turns) 2564 | . . . 73 403 633 94 751 37 132 40 401 Optics 2229 | . . . . 141 633 94 751 37 132 40 401 Sensors 2088 | . . . 73 403 613 94 742 . . . 163 Terrain 1954 | . . . . 279 625 94 751 37 132 36 . Structural 2395 | . . . . 320 620 94 751 37 132 40 401 Traps 542 | . . . . . . . 2 35 132 40 333 Machine Analysis 1372 | . . . . . 533 94 745 . . . . Triangulation 92 | . . . . . . . . . . . 92 Jamming 175 | . . . . . . . . . . . 175 Robot Analysis Total . | . . . . . . . . . . . . Derelict Logs Recovered 1 | . . . . . . . 1 . . . . Drone Launches 2 | . . . . . . . . . . . 2 Drone Recoveries . | . . . . . . . . . . . . Exploration | -11 -10 -9 -8 -7 -6 -5 -5 -5 -4 -4 -3 ------------- Run | Yrd Mat Mat Mat Fac Fac Fac Upp Upp Fac Ext Res Turns Passed 5194 | 176 791 760 949 403 633 94 751 37 132 40 428 Spaces Moved 5626 | 113 336 380 289 463 962 216 1283 123 298 124 1039 Core 296 | 11 . 9 67 43 115 . . . . . 51 Treads . | . . . . . . . . . . . . Legs 1031 | 102 336 371 222 . . . . . . . . Wheels . | . . . . . . . . . . . . Hover . | . . . . . . . . . . . . Flight 4299 | . . . . 420 847 216 1283 123 298 124 988 Fastest Speed 25 | 50 120 120 120 31 29 29 29 29 28 28 25 Average Speed 65 | 116 181 151 248 66 45 29 29 29 28 28 30 Slowest Speed 600 | 120 190 400 600 550 150 29 29 29 29 32 355 Overloaded Moves . | . . . . . . . . . . . . Propulsion Burnouts . | . . . . . . . . . . . . Robots Hopped 7 | . . . . 2 . . . . . . 5 Potential Cave-ins 4 | . . . . . . . . . 4 . . Cave-ins Triggered . | . . . . . . . . . . . . Exploration Rate (%) 29 | 4 56 36 27 18 24 8 90 16 10 27 36 Regions Visited 11 Branch Regions 3 Pre-discovered Areas . | . . . . . . . . . . . . Known Exits Taken 8 | . . . 1 1 1 1 1 1 1 1 . Unknown Exits Taken 3 | 1 1 1 . . . . . . . . . Scrap Searched 2 | . . . . . . . 2 . . . . Spaces Dug 22 | . . . . . 2 . 9 . 11 . . Terrain Destroyed 129 | . . . 107 . 2 . 9 . 11 . . Melee 22 | . . . . . 2 . 9 . 11 . . Projectile 5 | . . . 5 . . . . . . . . AOE 102 | . . . 102 . . . . . . . . Terrain Rammed . | . . . . . . . . . . . . Walls Destroyed . | . . . . . . . . . . . . Machines Disabled . | . . . . . . . . . . . . Actions | -11 -10 -9 -8 -7 -6 -5 -5 -5 -4 -4 -3 --------- Run | Yrd Mat Mat Mat Fac Fac Fac Upp Upp Fac Ext Res Total 6718 | 133 418 481 399 542 1151 247 1642 123 319 127 1136 Wait 707 | . 16 30 9 53 149 28 343 . 2 . 77 Move 5601 | 112 335 379 288 458 961 215 1282 122 297 123 1029 Hop 7 | . . . . 2 . . . . . . 5 Pick Up 36 | 3 6 5 9 2 9 . 1 . . . 1 Fast Attach 43 | 6 1 7 12 . 3 1 1 . 1 . 11 Attach 25 | . . 3 4 8 3 1 . 1 . 1 4 Detach 9 | . 1 . . 3 . 1 1 . . 2 1 Swap 22 | 1 3 2 7 . 5 . . . 3 . 1 Drop 28 | . 1 1 7 7 9 1 1 . . . 1 Fire 170 | 11 53 48 58 . . . . . . . . Melee 40 | . . . . 1 4 . 13 . 16 1 5 Ram 20 | . . 1 2 8 8 . . . . . 1 Kick 10 | . 2 5 3 . . . . . . . . Crush . | . . . . . . . . . . . . Escape Stasis . | . . . . . . . . . . . . Rewire . | . . . . . . . . . . . . Trap . | . . . . . . . . . . . . Miscellaneous . | . . . . . . . . . . . . Route ------- -11/Scrapyard -10/Materials (discovered 3 exits: *Mat x3) -9/Materials (discovered 2 exits: [*Mat] / [*Min]) -8/Materials -7/Factory -6/Factory -5/Factory -5/Upper Caves -5/Upper Caves -4/Factory -4/Extension -3/Research History --------- Turn | Location | Event 19 | -11/Scrapyard | Discovered new exit (range 13) 177 | -11/Scrapyard | Entered Materials 308 | -10/Materials | Build established: Mutant 546 | -10/Materials | Core integrity fell below 50% 585 | -10/Materials | Discovered new exit (range 3) 701 | -10/Materials | Discovered new exit (range 14) 869 | -10/Materials | Discovered new exit (range 15) 968 | -10/Materials | Entered another Materials area 968 | -9/Materials | Evolved 2 slots: Propulsion x2 1054 | -9/Materials | Discovered new exit (range 16) 1366 | -9/Materials | Discovered new exit (range 16) 1420 | -9/Materials | Build established: Scavenger-Mutant 1572 | -9/Materials | Core integrity fell below 50% 1596 | -9/Materials | Lost 6 parts (1p3n2w) 1728 | -9/Materials | Entered another Materials area 1728 | -8/Materials | Evolved 2 slots: Power x1, Utility x1 1934 | -8/Materials | Lost 5 parts (1p1n3w) 2127 | -8/Materials | Lost 4 parts (2p1n1w) 2270 | -8/Materials | Core integrity fell below 50% 2306 | -8/Materials | Lost 3 parts (2n1u) 2393 | -8/Materials | Build established: Mutant 2458 | -8/Materials | Discovered new exit (range 16) 2672 | -8/Materials | Identified exit to Factory 2677 | -8/Materials | Entered Factory 2677 | -7/Factory | Evolved 2 slots: Utility x2 3079 | -7/Factory | Discovered new exit (range 4) 3079 | -7/Factory | Identified exit to Factory 3080 | -7/Factory | Entered another Factory area 3080 | -6/Factory | Evolved 2 slots: Utility x2 3658 | -6/Factory | Build established: Scout 3708 | -6/Factory | Discovered new exit (range 17) 3713 | -6/Factory | Identified exit to Factory 3713 | -6/Factory | Entered another Factory area 3713 | -5/Factory | Evolved 2 slots: Utility x2 3801 | -5/Factory | Discovered new exit (range 9) 3807 | -5/Factory | Identified exit to Upper Caves 3807 | -5/Factory | Entered Upper Caves 3822 | -5/Upper Caves | Acquired the password to a Derelict Tinkerer's latest research 3835 | -5/Upper Caves | Learned Factory emergency access door positions 4535 | -5/Upper Caves | Caught by Unaware searching for contraband prototypes 4552 | -5/Upper Caves | Discovered new exit (range 14) 4558 | -5/Upper Caves | Identified exit to Upper Caves 4558 | -5/Upper Caves | Entered another Upper Caves area 4581 | -5/Upper Caves | Discovered new exit (range 3) 4583 | -5/Upper Caves | Identified exit to Factory 4595 | -5/Upper Caves | Entered Factory 4595 | -4/Factory | Evolved 2 slots: Propulsion x2 4691 | -4/Factory | Discovered new exit (range 9) 4706 | -4/Factory | Identified exit to Extension 4727 | -4/Factory | Entered Extension 4733 | -4/Extension | Disrupted transfer network 4760 | -4/Extension | Spotted B-86 Titan 4761 | -4/Extension | Spotted B-86 Titan 4766 | -4/Extension | Discovered new exit (range 3) 4767 | -4/Extension | Identified exit to Research 4767 | -4/Extension | Entered Research 4767 | -3/Research | Evolved 2 slots: Utility x2 4775 | -3/Research | Found Prototype Processor 4775 | -3/Research | Identified Exp. Signal Interpreter 4797 | -3/Research | Lost 4 parts (2n2u) 5043 | -3/Research | Spotted B-86 Titan 5088 | -3/Research | Spotted B-86 Titan 5168 | -3/Research | Released all parts (10) 5180 | -3/Research | Core integrity fell below 50% 5186 | -3/Research | Core integrity fell below 20% 5195 | -3/Research | Destroyed by S-43 Plague with Heavy Machine Gun Last Messages --------------- 05169_ K-01 Serf collects debris. 05173_ Triggered Tesla Bomb Trap. 05173_ A bubble of electromagnetic force engulfs the area. 05173_ K-01 Serf destroyed. 05173_ S-43 Plague destroyed. 05173_ Tesla Bomb Trap short circuited. 05173_ S-43 Plague destroyed. 05173_ A bubble of electromagnetic force engulfs the area. 05173_ K-01 Serf destroyed. 05173_ Acquired 26 matter. 05174_ S-43 Plague IFF system glitched. 05175_ Slug penetrates Wall. 05176_ P-80 Master resets S-43 Plague, system corruption cleaned. 05180_ U-05 Engineer lays Concrete. 05181_ K-01 Serf system corrupted by crushing effect. 05181_ Slammed into K-01 Serf. 05182_ Acquired 7 matter. 05182_ K-01 Serf system terminally corrupted. 05182_ U-05 Engineer destroyed. 05184_ P-80 Master resets R-10 Processor, system corruption cleaned. Map ----- +----------------------------------------------------+ | ?????????????????????????????????????????????????? | | ?????? ??????????????????????????????????????????? | | ?????+ ????????????????????????????????????????? | | ?????# ????????????????????????????????????????? | | ?????# ????????????????#???????????????????????? | | ?????# ??????????????? ???????????????????????? | | ?????# #????????????? ????????????????????????? | | ?????+ +???????????? ??????????????????????????? | | ?????# #??????#+### ???????????????????????????? | | ???### ###????# ????????????????????????????? | | ???# #????# #?????????????????????????????? | | ???# ! ]###### #?????????????????????????????? | | ???# #?????????????????????????????? | | ???+ ! #?????????????????????????????? | | ???# H #?????????????????????????????? | | ???# ! % ##### #?????????????????????????????? | | ???# #???# #?????????????????????????????? | | ???## ####?# #?????????????????????????????? | | ????# #? # #?????????????????????????????? | | ????# #??? /A #?????????????????????????????? | | ????#% #????# s########??????????????????????? | | ????# #????# s #??????????????????????? | | ##### #????# s #??????????????????????? | | # #????# +??????????????????????? | | " #????# #??????????????????????? | | " #????## @#??????????????????????? | | #% #?????# * #??????????????????????? | | ] + #?????# #??????????????????????? | | ] # # ????# = #??????????????????????? | | ?# % # ????# ##??????????????????????? | | ?#=% # ???+ k ???????????????????????? | | # * # ???####### ??????????????????????? | | ##### #??????????##### ?????????????????????? | | =[= #??????????????? ?????????????????????? | | [% #??????????????? ????????????????????? | | %[*% #???????????????? #???????????????????? | | = = #???????????????? #???????????????????? | | #???????????????? #???????????????????? | | # #########????????????????? #???????????????????? | | ??????????????????????????????????????????????? | | ?????????????????????????????????????????????? | | """????????????????????????????????????????????? | | """????????????????????????????????????????????? | | """"???????????????????????????????????????????? | | ""????????????????????????????????????????????? | | ?????????????????????????????????????????????? | | ?????????????????????????????????????????????? | | ??????????????????????????????????????????????? | | ###??????????????????????????????????????????????? | | ?????????????????????????????????????????????????? | +----------------------------------------------------+ Best States ------------- Heat Dissipation 46 Energy Generation 31 Energy Capacity 350 Matter Stores 300 Matter Capacity 300 Sight Range 20 Robot Scan Range 15 Terrain Scan Range 16 Terrain Scan Density 210 Jamming Range 14 Power Amplification 40 Armor Coverage 150 Evasion (%) 65 Kinecelleration 30 Defensive Hacking 25 Item Schematics ----------------- None Robot Schematics ------------------ None Fabricated ------------ Nothing Repaired ---------- Nothing Studied --------- Flight Unit | -9/Materials | Hacked Alien Tech Used ----------------- None Achievements -------------- None Challenges ------------ None Game ------ Seed AbsorptionFissionRipteeth Manual? 0 Play Time 00:43:41 Cumulative 66.2 hours Start 2026.02.13 @ 14:24:57 End 2026.02.13 @ 15:08:32 Sessions 1 Manual Loads 0 Difficulty Rogue Special Mode None Game No. 141 Rogue 141 Adventurer 0 Explorer 0 Win Type - Total 0 Types 0/0/0/0/0/0/0/0/0/0 Lore% 45 Gallery% 34 Achievement% 32 Wizard Run 0 Options --------- Layout 0 ASCII 0 Keyboard 1 Movement Arrows Keybinds 0 Fullscreen 1 Font 18/Smallcaps Map View 76x50 Zoom Use 43% Tactical HUD 1 Map Filters NONE Filters NONE Steam 1 RUN: 673ae6ff-545a-438b-8ce3-413daa38ac52